Cogmind - Beta 14 @@@ ROGUE MODE // 2024.10.04 @ 23:14:03 Player: Corvi Result: Destroyed by 9Q-PAA(R) with Subdweller Machine Gun Performance ------------- Evolutions (0) 0 Regions Visited (2) 400 Robots Destroyed (44) 220 Value Destroyed (1098) 1098 Prototype IDs (0) 0 Alien Tech Used (0) 0 Bonus (0) 0 TOTAL SCORE: 1718 Bonus ------- None Cogmind --------- Core Integrity 0/250 Matter 150/300 Energy 79/100 System Corruption 2% Temperature Cool (0) Movement Walking (120) Location -10/Subcaves Parts ------- > --- POWER (1) -------- (None) > --- PROPULSION (2) --- Aluminum Leg > --- UTILITY (2) ------ Small Storage Unit > --- WEAPON (2) ------- (None) > --- INVENTORY (8) ---- Improved Ion Engine Subdweller Monowheel Subdweller Monowheel Subdweller Optics Sensor Array Makeshift Hacking Suite Peak State ------------ > --- POWER ------------ Improved Ion Engine > --- PROPULSION ------- Spiked Treads Spiked Treads > --- UTILITY ---------- Small Storage Unit Structural Scanner > --- WEAPON ----------- Riot Gun Mining Laser > --- INVENTORY -------- Improved Ion Engine Aluminum Leg Subdweller Monowheel Subdweller Monowheel Subdweller Optics Sensor Array Makeshift Hacking Suite Grenade Launcher [Rating: 13] Favorites ----------- Power Improved Ion Engine Engine Improved Ion Engine Propulsion Light Treads Treads Light Treads Leg Aluminum Leg Wheel Subdweller Monowheel Utility Small Storage Unit Device Sensor Array Storage Small Storage Unit Processor Visual Processing Unit Weapon EM Shotgun Energy Gun EM Shotgun Launcher Grenade Launcher Special Weapon Mining Laser Build | -11 -10 -10 ------- Run | Yrd Mat Sub Slots Evolved . | . . . Power . | . . . Propulsion . | . . . Utility . | . . . Weapon . | . . . Parts Attached 70 | 7 13 50 Power 8 | 1 3 4 Engine 8 | 1 3 4 Core . | . . . Reactor . | . . . Propulsion 9 | 2 1 6 Treads 6 | 2 1 3 Leg 1 | . . 1 Wheel 2 | . . 2 Hover . | . . . Flight . | . . . Utility 14 | 1 4 9 Device 11 | . 2 9 Storage 1 | 1 . . Processor 2 | . 2 . Hackware . | . . . Protection . | . . . Artifact . | . . . Weapon 39 | 3 5 31 Energy Gun 11 | 3 3 5 Energy Cannon . | . . . Ballistic Gun . | . . . Ballistic Cannon . | . . . Launcher 14 | . 2 12 Special Weapon 14 | . . 14 Impact Weapon . | . . . Slashing Weapon . | . . . Piercing Weapon . | . . . Special Melee Weapon . | . . . Unidentified Prototypes . | . . . Parts Lost 12 | . . 12 Power 1 | . . 1 Propulsion 3 | . . 3 Utility 1 | . . 1 Weapon 7 | . . 7 Highest Loss Streak 6 | . . 6 To Critical Strikes 1 | . . 1 Average Slot Usage (%) 96 | . 96 96 Engine 13 | . 14 13 Treads 24 | . 28 23 Wheel 1 | . . 1 Device 12 | . 5 13 Storage 14 | . 14 14 Processor 1 | . 6 . Energy Gun 15 | . 18 14 Launcher 2 | . 7 . Special Weapon 9 | . . 12 Peak Build Rating 13 | 6 12 13 Average Rating 10 | 4 9 10 On Entrance 5 | . 5 11 Naked Turns . | . . . Heaviest Build 24 | 11 19 24 Greatest Support 40 | 40 40 40 Greatest Overweight (x) 1 | 1 . 1 Average Overweight (x) . | . . . Largest Inventory Capacity 8 | 8 8 8 Average Capacity 7 | 7 8 8 Most Carried 8 | 4 8 8 Average Carried 7 | 1 7 7 Final Capacity 8 | 8 8 8 Final Carried 8 | 3 8 6 Class Distribution -------------------- 100% | Mutant Dominant Class ---------------- Mutant | -10/Materials Mutant | -10/Subcaves Resources | -11 -10 -10 ----------- Run | Yrd Mat Sub Matter Collected 1375 | 217 247 911 Remotely . | . . . Salvage Created 974 | . 417 557 Parts 88 | . 38 50 Haulers Intercepted 1 | . 1 . Recyclers Shooed . | . . . Parts Field Recycled . | . . . Retrieved Matter . | . . . Parts Self-Destructed 9 | . . 9 Prevented . | . . . Kills | -11 -10 -10 ------- Run | Yrd Mat Sub Combat Hostiles Destroyed 37 | . 15 22 Guns 10 | . 6 4 AOE 26 | . 8 18 Classes Destroyed 7 | . 6 1 Worker 2 | . 2 . Hauler 1 | . 1 . Operator 2 | . 2 . Watcher 2 | . 2 . Swarmer 14 | . 11 3 Grunt 5 | . 4 1 Subdweller 18 | . . 18 Best Kill Streak 4 | . 4 4 Combat Bots Only 4 | . 3 4 Max Kills in Single Turn 3 | . 3 3 Gunslinging . | . . . Exploded 3 | . 3 3 Melee . | . . . Uniques/NPCs Destroyed . | . . . Combat | -11 -10 -10 -------- Run | Yrd Mat Sub Hostile Shots Fired 89 | . 36 53 Missed 28 | . 12 16 Damage Taken 1653 | . 292 1361 Core 253 | . 48 205 Absorbed by Shields . | . . . Regen/Repaired (Parts) 38 | . 38 . Core Remaining (%) 100 | 100 . . Volleys Fired 142 | . 32 110 Largest 2 | . 2 2 Hottest 150 | . 90 150 Shots Fired 180 | . 48 132 Gun 81 | . 43 38 Cannon . | . . . Launcher 43 | . 5 38 Special 56 | . . 56 Kinetic 9 | . . 9 Thermal 57 | . . 57 Explosive 34 | . 5 29 Electromagnetic 80 | . 43 37 Robot Hit Streak 14 | . 6 14 Robot Miss Streak 4 | . 4 2 Penetration Max . | . . . Secondary Targets 1 | . 1 . Max Gunslinging Chain 1 | . 1 . Shots Hit Robots 86 | . 35 51 Core Hits 68 | . 27 41 Critical Kills . | . . . Critical Parts Destroyed . | . . . Critical Strikes . | . . . Melee Attacks . | . . . Impact . | . . . Slashing . | . . . Piercing . | . . . Sneak Attacks . | . . . Combat Hostiles . | . . . Follow-up Attacks . | . . . Damage Inflicted 2993 | . 900 2093 Guns 893 | . 466 427 Cannons . | . . . Explosions 2076 | . 434 1642 Melee . | . . . Ramming . | . . . Kinetic 558 | . . 558 Thermal 223 | . 63 160 Explosive 1341 | . 371 970 Electromagnetic 871 | . 466 405 Impact . | . . . Slashing . | . . . Piercing . | . . . Highest Corruption 2 | . 2 2 Average Corruption 2 | . 2 2 Corruption Purged . | . . . Corruption Blocked . | . . . Effects 85 | . 17 68 Message Errors 17 | . 3 14 Matter Fused 22 | . 3 19 Heat Flow Errors 11 | . 2 9 Energy Discharges 7 | . 2 5 Parts Fused 1 | . . 1 Data Loss (minor) 16 | . 2 14 Data Loss (major) 6 | . 3 3 Misfires 4 | . 2 2 Alerts 1 | . . 1 Overload Shots . | . . . Overflow Damage 39 | . . 39 Projectiles . | . . . Explosions 39 | . . 39 Melee . | . . . Knockbacks . | . . . Impact . | . . . Kinetic . | . . . Secondary . | . . . Self-Inflicted Damage 571 | . 46 525 Shots 20 | . 2 18 Rammed . | . . . Targets Rammed . | . . . Kicked . | . . . Crushed . | . . . Highest Temperature 262 | . 262 217 Average Temperature 75 | . 68 91 Received Heat Transfer 219 | . 66 153 Effects 1 | . . 1 Energy Bleed 1 | . . 1 Siege Activations . | . . . Robots Corrupted 1 | . 1 . Combat Hostiles 1 | . 1 . Parts Fried 2 | . 1 1 Impact Corruptions . | . . . Robots Melted . | . . . Combat Hostiles . | . . . Parts Melted 1 | . . 1 Heat Transferred 225 | . 100 125 Parts Sabotaged . | . . . Parts Stolen . | . . . Parts Stripped . | . . . Power Chain Reactions 3 | . 1 2 Alert | -11 -10 -10 ------- Run | Yrd Mat Sub Peak Influence 331 | . 331 . Initial . | . . . Average 137 | . 145 . Maximum Alert Level 1 | . 1 . Low Security (%) 62 | 100 60 . Level 1 37 | . 39 . Level 2 . | . . . Level 3 . | . . . Level 4 . | . . . Level 5 . | . . . High Security . | . . . Max Security . | . . . Squads Dispatched 2 | . 2 . Investigation . | . . . Extermination . | . . . Reinforcement 2 | . 2 . Assault . | . . . Garrison . | . . . Intercept . | . . . Searches Triggered . | . . . Construction Impeded . | . . . Haulers Reinforced . | . . . Active Scanning Responses . | . . . Cargo Convoy Interrupts . | . . . Stealth | -11 -10 -10 --------- Run | Yrd Mat Sub Distress Signals 1 | . 1 . Communications Jammed . | . . . Distress Signals . | . . . Times Spotted 52 | . 29 23 Peak Tracking Total 4 | . 4 3 Tactical Retreats 3 | . 1 2 Traps | -11 -10 -10 ------- Run | Yrd Mat Sub Traps Triggered 3 | . 2 1 Indirectly . | . . . Trap Hack Attempts . | . . . Triggered . | . . . Disarmed . | . . . Reprogrammed . | . . . Reused . | . . . Traps Extracted . | . . . Installed . | . . . Triggered . | . . . Machines | -11 -10 -10 ---------- Run | Yrd Mat Sub Machines Disabled . | . . . Max in Single Turn . | . . . Machines Repaired . | . . . Machines Dismantled . | . . . Machines Sabotaged . | . . . Overloaded Fab Kills . | . . . Hacking | -11 -10 -10 --------- Run | Yrd Mat Sub Machines Accessed 8 | . 5 3 Terminals 4 | . 4 . Fabricators . | . . . Repair Stations 1 | . 1 . Recycling Units . | . . . Scanalyzers . | . . . Garrison Access . | . . . Total Hacks 20 | . 13 7 Successful 12 | . 5 7 Failed 8 | . 8 . Catastrophic 1 | . 1 . Database Lockouts . | . . . Manual 11 | . 11 . Terminals 11 | . 11 . Fabricators . | . . . Repair Stations 2 | . 2 . Recycling Units . | . . . Scanalyzers . | . . . Garrison Access . | . . . Terminal Hacks 8 | . 1 7 Record 5 | . . 5 Robot Analysis 1 | . 1 . Open Door 1 | . . 1 Release Object 1 | . . 1 Fabricator Hacks . | . . . Repair Station Hacks 2 | . 2 . Scan Component 1 | . 1 . Repair 1 | . 1 . Recycling Unit Hacks . | . . . Scanalyzer . | . . . Garrison Access Hacks . | . . . Unauthorized Hacks 2 | . 2 . Terminals 2 | . 2 . Botnet 1 | . 1 . Operators 1 | . 1 . Fabricators . | . . . Repair Stations . | . . . Recycling Units . | . . . Scanalyzers . | . . . Garrison Access . | . . . Data Cores Recovered . | . . . Used . | . . . Hacking Detections 5 | . 5 . Full Trace Events 1 | . 1 . Feedback Events . | . . . Feedback Blocked . | . . . Robot Schematics Acquired . | . . . Robots Built . | . . . Authchips . | . . . Time . | . . . Total Robot Build Rating . | . . . Part Schematics Acquired . | . . . Parts Built . | . . . Authchips . | . . . Time . | . . . Total Part Build Rating . | . . . Parts Repaired 1 | . 1 . Time 26 | . 26 . Parts Recycled . | . . . Recycled Matter . | . . . Retrieved Matter . | . . . Retrieved Components . | . . . Parts Scanalyzed . | . . . Part Schematics Acquired . | . . . Parts Damaged . | . . . Bothacking | -11 -10 -10 ------------ Run | Yrd Mat Sub Used RIF Installer . | . . . Robots Hacked . | . . . Non-combat . | . . . Combat . | . . . Robot Hacks Applied . | . . . Relay Couplers Released . | . . . Fabnet Peak Effective % . | . . . Robots Rewired . | . . . Allies Hacked . | . . . Hacks Repelled . | . . . Allies | -11 -10 -10 -------- Run | Yrd Mat Sub Total Allies . | . . . Largest Group . | . . . Highest-Rated Group . | . . . Highest-Rated Ally . | . . . Total Orders . | . . . Ally Attacks . | . . . Total Damage . | . . . Kills . | . . . Allies Corrupted . | . . . Allies Melted . | . . . Intel | -11 -10 -10 ------- Run | Yrd Mat Sub Robot Analysis Total 1 | . 1 . Derelict Logs Recovered . | . . . Drone Launches . | . . . Drone Recoveries . | . . . Exploration | -11 -10 -10 ------------- Run | Yrd Mat Sub Turns Passed 6086 | 75 1320 4691 Spaces Moved 3514 | 45 724 2745 Core 16 | 15 . 1 Treads 3135 | 30 724 2381 Legs . | . . . Wheels 363 | . . 363 Hover . | . . . Flight . | . . . Fastest Speed 50 | 50 160 100 Average Speed 154 | 134 160 153 Slowest Speed 260 | 160 160 260 Overloaded Moves . | . . . Propulsion Burnouts . | . . . Robots Hopped . | . . . Cave-ins Triggered . | . . . Exploration Rate (%) 59 | 4 82 91 Regions Visited 2 Branch Regions 1 Pre-discovered Areas 2 | . . 2 Known Exits Taken . | . . . Unknown Exits Taken 2 | 1 1 . Scrap Searched 17 | . . 17 Spaces Dug 56 | . . 56 Terrain Destroyed 278 | . 38 240 Melee . | . . . Projectile 5 | . . 5 AOE 273 | . 38 235 Terrain Rammed . | . . . Walls Destroyed . | . . . Machines Disabled . | . . . Actions | -11 -10 -10 --------- Run | Yrd Mat Sub Total 3854 | 57 841 2956 Wait 85 | . 48 37 Move 3512 | 44 723 2745 Hop . | . . . Pick Up 22 | 4 13 5 Fast Attach 20 | 6 6 8 Attach 9 | . 3 6 Detach 2 | . 1 1 Swap 41 | 1 4 36 Drop 21 | 2 11 8 Fire 142 | . 32 110 Melee . | . . . Ram . | . . . Kick . | . . . Crush . | . . . Escape Stasis . | . . . Rewire . | . . . Trap . | . . . Miscellaneous . | . . . Route ------- -11/Scrapyard -10/Materials (discovered 4 exits: [*Mat x2] / [*Min] / *Sub) -10/Subcaves (discovered 2 exits: [*Mat x2]) History --------- Turn | Location | Event 15 | -11/Scrapyard | Discovered new exit (range 16) 76 | -11/Scrapyard | Entered Materials 96 | -10/Materials | Discovered new exit (range 16) 315 | -10/Materials | Build established: Mutant 512 | -10/Materials | Discovered new exit (range 10) 945 | -10/Materials | Repaired Grenade Launcher 1001 | -10/Materials | Discovered new exit (range 12) 1387 | -10/Materials | Discovered new exit (range 8) 1396 | -10/Materials | Entered Subcaves 1428 | -10/Subcaves | Shifting Twisted Machinery released Flamer 1496 | -10/Subcaves | Shifting Twisted Machinery released Mak. Hacking Suite 1788 | -10/Subcaves | Shifting Twisted Machinery released Battle Cannon 1801 | -10/Subcaves | Shifting Twisted Machinery released Sub. Monowheel 2023 | -10/Subcaves | Shifting Twisted Machinery released Flamer 2027 | -10/Subcaves | Shifting Twisted Machinery released Sub. Monowheel 2064 | -10/Subcaves | Discovered new exit (range 11) 2221 | -10/Subcaves | A swath of the cavern ceiling suddenly collapsed 2365 | -10/Subcaves | Discovered new exit (range 13) 2368 | -10/Subcaves | Learned location of Zion (-7) 2368 | -10/Subcaves | Met a Zionite searching for "candidates" 3735 | -10/Subcaves | A swath of the cavern ceiling suddenly collapsed 3798 | -10/Subcaves | Visited Clippyterm 3802 | -10/Subcaves | Learned location of Deep Caves (-7) 3802 | -10/Subcaves | Learned Research machine intel 4077 | -10/Subcaves | Disturbed a concealed Subdweller 4349 | -10/Subcaves | Core integrity fell below 50% 5631 | -10/Subcaves | Disturbed a concealed Subdweller 5958 | -10/Subcaves | Ambushed by Subdweller buried in earth 5959 | -10/Subcaves | Core integrity fell below 20% 6056 | -10/Subcaves | Ambushed by Subdweller buried in earth 6060 | -10/Subcaves | Ambushed by Subdweller buried in earth 6064 | -10/Subcaves | Ambushed by Subdweller buried in earth 6066 | -10/Subcaves | Ambushed by Subdweller buried in earth 6074 | -10/Subcaves | Ambushed by Subdweller buried in earth 6087 | -10/Subcaves | Destroyed by 9Q-PAA(R) with Subdweller Machine Gun Last Messages --------------- DQ-8FA(R) destroyed. 9Q-PAA(R): "ARGHSUB!" The unstable cave ceiling collapses. Subatomizers dissect the Sub. Power Source. The unstable cave ceiling collapses. Spk. Treads destroyed. Destroyed Spk. Treads. A7-99R(R): "ARGHSUB!" A7-99R(R) destroyed. Grenade Launcher destroyed. Destroyed Grenade Launcher. Imp. Ion Engine destroyed. Destroyed Imp. Ion Engine. Acquired Sub. Laser. 9Q-PAA(R) affixes Scrap Shield Fragment to Unknown Protection. The unstable cave ceiling collapses. Sub. Laser destroyed. The unstable cave ceiling collapses. Spk. Treads destroyed. The unstable cave ceiling collapses. Map ----- +----------------------------------------------------+ | | | | | | | ?????????????????????????????????????????????????? | | ?????????????????????????????????????????????????? | | ?????????????????????????????????????????????????? | | ?????????????????????????????????????????????????? | | ?????????????????????????????????????????????????? | | ?????????????????????????????????????????????????? | | ?????????????????????????????????????????????????? | | ?????????????????????????????????????????????????? | | ?????????????????????????????????????????????????? | | ?????????????????????????????????????????????????? | | ?????????????????????????????????????????????????? | | ?????????????????????????????????????????????????? | | ?????????????????????????????????????????????????? | | #####????????????????######??????????????????????? | | ######???????????????##############??????????????? | | "###??????????????###""############????????????? | | "##?????????????####""" ####????????????? | | "##????????????####"""" # ##????????????? | | "###????????????###" ##????????????? | | ""##?????????????## "" !# # ##????????????? | | "" ##????????????### " %!# ###????????????? | | " ###???????????### " R # ###????????????? | | " ###???????????## " @ # ##????????????? | | ##???????????### ####????????????? | | ##???????????#### # # ####????????????? | | ####??????????### """######???????????????? | | ########?????????## "###???????????????????? | | ### ###????????? ## &= ####???????????????????? | | ### ##??????##### !%& ####????????????????????? | | ## ############## *& ###?????????????????##### | | # ########## &&& ##?????################## | | ### ## # %#& ########################""# | | ## &# ############# #### #### """ | | # # # ####?## ## " | | # ## ## # ##??### | | # #### #############??#### #### | | # ##### #######??## # #### ## # ##""" # | | #### ##?????????????### #########"" # | | ##### ### ##?????????????### ## ###########" " | | ##### ######?????????????## #########??## ] " | | ##### #####?????????????### ########### | | ### ##????????????????### ########### | | ### ###????????????????## ##### | | ### ###???????????????### #### #### | | ##### ###???????????????### ##### ### # | | #### #####????????####?## ###### ##### | | " "" #####???????######## ##### ## # | +----------------------------------------------------+ Best States ------------- Heat Dissipation 35 Energy Generation 15 Energy Capacity 265 Matter Stores 300 Matter Capacity 300 Sight Range 18 Robot Scan Range 14 Terrain Scan Density 85 Evasion (%) 40 Recoil Reduction 2 Item Schematics ----------------- None Robot Schematics ------------------ None Fabricated ------------ Nothing Alien Tech Used ----------------- None Achievements -------------- None Challenges ------------ None Game ------ Seed BombAblativeShield Manual? 0 Play Time 00:34:44 Cumulative 45.7 hours Start 2024.10.04 @ 22:40:34 End 2024.10.04 @ 23:14:03 Sessions 1 Manual Loads 0 Difficulty Rogue Special Mode None Game No. 56 Rogue 56 Adventurer 0 Explorer 0 Win Type - Total 0 Types 0/0/0/0/0/0/0/0/0 Lore% 29 Gallery% 40 Achievement% 35 Wizard Run 0 Options --------- Layout 0 ASCII 0 Keyboard 0 Movement Arrows Keybinds 0 Fullscreen 1 Font 18/SmallcapsGlow Map View 76x50 Zoom Use 0% Tactical HUD 0 Map Filters NONE Filters NONE Steam 0 RUN: c7a33539-f575-432f-8206-223fff39f406